Workbook

Sheet Sheet1
A1: 贵阳市市场监督管理局2023年公开招聘事业单位工作人员面试成绩、总成绩及进入体检环节人员名单
A2: 序号 | B2: 姓名 | C2: 报考单位 | D2: 报考岗位及代码 | E2: 笔试成绩 | F2: 笔试成绩（百分制） | G2: 笔试成绩30% | H2: 专业测试成绩 | I2: 专业测试成绩40% | J2: 笔试、专业测试成绩 | K2: 面试成绩 | L2: 面试成绩30% | M2: 笔试、专业测试、面试成绩 | N2: 综合排名 | O2: 是否进入体检
A3: 1 | B3: 符婧怡 | C3: 贵阳市知识产权保护中心 | D3: 20101180401 专利预审 | E3: 225 | F3: =E3/3 -> 75.0 | G3: =F3*0.3 -> 22.50 | H3: 65.5 | I3: =H3*0.4 -> 26.20 | J3: =G3+I3 -> 48.70 | K3: 81.80 | L3: =K3*0.3 -> 24.54 | M3: =G3+I3+L3 -> 73.24 | N3: 1 | O3: 是
A4: 2 | B4: 黄婷婷 | C4: 贵阳市知识产权保护中心 | D4: 20101180401 专利预审 | E4: 194.5 | F4: =E4/3 -> 64.8 | G4: =F4*0.3 -> 19.45 | H4: 73.5 | I4: =H4*0.4 -> 29.40 | J4: =G4+I4 -> 48.85 | K4: 78.40 | L4: =K4*0.3 -> 23.52 | M4: =G4+I4+L4 -> 72.37 | N4: 2 | O4: 否
A5: 3 | B5: 张静敏 | C5: 贵阳市知识产权保护中心 | D5: 20101180401 专利预审 | E5: 210.5 | F5: =E5/3 -> 70.2 | G5: =F5*0.3 -> 21.05 | H5: 71 | I5: =H5*0.4 -> 28.40 | J5: =G5+I5 -> 49.45 | K5: 75.40 | L5: =K5*0.3 -> 22.62 | M5: =G5+I5+L5 -> 72.07 | N5: 3 | O5: 否
A7: 序号 | B7: 姓名 | C7: 报考单位 | D7: 报考岗位及代码 | E7: 笔试成绩 | F7: 笔试成绩（百分制） | G7: 笔试成绩30% | H7: 专业测试成绩 | I7: 专业测试成绩40% | J7: 笔试、专业测试成绩 | K7: 面试成绩 | L7: 面试成绩30% | M7: 笔试、专业测试、面试成绩 | N7: 综合排名 | O7: 是否进入体检
A8: 1 | B8: 蔡雨晴 | C8: 贵阳市药品不良反应监测中心 | D8: 20101180201 两品一械监测评价 | E8: 204.5 | F8: =E8/3 -> 68.2 | G8: =F8*0.3 -> 20.45 | H8: 62 | I8: =H8*0.4 -> 24.80 | J8: =G8+I8 -> 45.25 | K8: 85.60 | L8: =K8*0.3 -> 25.68 | M8: =G8+I8+L8 -> 70.93 | N8: 1 | O8: 是
A9: 2 | B9: 苏世华 | C9: 贵阳市药品不良反应监测中心 | D9: 20101180201 两品一械监测评价 | E9: 178 | F9: =E9/3 -> 59.3 | G9: =F9*0.3 -> 17.80 | H9: 70 | I9: =H9*0.4 -> 28.00 | J9: =G9+I9 -> 45.80 | K9: 79.20 | L9: =K9*0.3 -> 23.76 | M9: =G9+I9+L9 -> 69.56 | N9: 2 | O9: 否
A10: 3 | B10: 李玉兰 | C10: 贵阳市药品不良反应监测中心 | D10: 20101180201 两品一械监测评价 | E10: 186 | F10: =E10/3 -> 62.0 | G10: =F10*0.3 -> 18.60 | H10: 66 | I10: =H10*0.4 -> 26.40 | J10: =G10+I10 -> 45.00 | K10: 76.00 | L10: =K10*0.3 -> 22.80 | M10: =G10+I10+L10 -> 67.80 | N10: 3 | O10: 否
A12: 序号 | B12: 姓名 | C12: 报考单位 | D12: 报考岗位及代码 | E12: 笔试成绩 | F12: 笔试成绩（百分制） | G12: 笔试成绩60% | H12: 面试成绩 | I12: 面试成绩40% | J12: 笔试、面试成绩 | K12: 综合排名 | L12: 是否进入体检
A13: 1 | B13: 杨曼西 | C13: 贵阳市知识产权保护中心 | D13: 20101180402 维权援助 | E13: 211.5 | F13: =E13/3 -> 70.5 | G13: =F13*0.6 -> 42.3 | H13: 83.6 | I13: =H13*0.4 -> 33.44 | J13: =G13+I13 -> 75.74 | K13: 1 | L13: 是
A14: 2 | B14: 罗玲慧 | C14: 贵阳市知识产权保护中心 | D14: 20101180402 维权援助 | E14: 205.5 | F14: =E14/3 -> 68.5 | G14: =F14*0.6 -> 41.1 | H14: 81.2 | I14: =H14*0.4 -> 32.48 | J14: =G14+I14 -> 73.58 | K14: 2 | L14: 否
A15: 3 | B15: 罗 杰 | C15: 贵阳市知识产权保护中心 | D15: 20101180402 维权援助 | E15: 205.5 | F15: =E15/3 -> 68.5 | G15: =F15*0.6 -> 41.1 | H15: 77 | I15: =H15*0.4 -> 30.8 | J15: =G15+I15 -> 71.9 | K15: 3 | L15: 否
A17: 序号 | B17: 姓名 | C17: 报考单位 | D17: 报考岗位及代码 | E17: 笔试成绩 | F17: 笔试成绩（百分制） | G17: 笔试成绩60% | H17: 面试成绩 | I17: 面试成绩40% | J17: 笔试、面试成绩 | K17: 综合排名 | L17: 是否进入体检
A18: 1 | B18: 孔凌云 | C18: 贵阳市市场监督管理发展研究中心 | D18: 20101180301 专业技术人员 | E18: 222.5 | F18: =E18/3 -> 74.2 | G18: =F18*0.6 -> 44.5 | H18: 86.2 | I18: =H18*0.4 -> 34.48 | J18: =G18+I18 -> 78.98 | K18: 1 | L18: 是
A19: 2 | B19: 韩 林 | C19: 贵阳市市场监督管理发展研究中心 | D19: 20101180301 专业技术人员 | E19: 218.5 | F19: =E19/3 -> 72.8 | G19: =F19*0.6 -> 43.7 | H19: 80.8 | I19: =H19*0.4 -> 32.32 | J19: =G19+I19 -> 76.02 | K19: 2 | L19: 否
A20: 3 | B20: 沈 鑫 | C20: 贵阳市市场监督管理发展研究中心 | D20: 20101180301 专业技术人员 | E20: 211.5 | F20: =E20/3 -> 70.5 | G20: =F20*0.6 -> 42.3 | H20: 81.2 | I20: =H20*0.4 -> 32.48 | J20: =G20+I20 -> 74.78 | K20: 3 | L20: 否
A22: 序号 | B22: 姓名 | C22: 报考单位 | D22: 报考岗位及代码 | E22: 笔试成绩 | F22: 笔试成绩（百分制） | G22: 笔试成绩60% | H22: 面试成绩 | I22: 面试成绩40% | J22: 笔试、面试成绩 | K22: 综合排名 | L22: 是否进入体检
A23: 1 | B23: 张洪晨 | C23: 贵阳市市场监督管理局信息中心 | D23: 20101180101 信息化专业技术岗位 | E23: 204 | F23: =E23/3 -> 68 | G23: =F23*0.6 -> 40.8 | H23: 83.2 | I23: =H23*0.4 -> 33.28 | J23: =G23+I23 -> 74.08 | K23: 1 | L23: 是
A24: 2 | B24: 麻 慧 | C24: 贵阳市市场监督管理局信息中心 | D24: 20101180101 信息化专业技术岗位 | E24: 162 | F24: =E24/3 -> 54 | G24: =F24*0.6 -> 32.4 | H24: 72.4 | I24: =H24*0.4 -> 28.96 | J24: =G24+I24 -> 61.36 | K24: 2 | L24: 否
A25: 3 | B25: 田彩妮 | C25: 贵阳市市场监督管理局信息中心 | D25: 20101180101 信息化专业技术岗位 | E25: 150.5 | F25: =E25/3 -> 50.2 | G25: =F25*0.6 -> 30.1 | H25: 缺考 | L25: 否
